[Event "Live Chess"]
[Site "Chess.com"]
[Date "2023.05.20"]
[Round "-"]
[White "daveeeeR"]
[Black "alexlines8"]
[Result "1-0"]
[WhiteElo "1272"]
[BlackElo "1270"]
[TimeControl "300"]
[EndTime "9:06:27 PDT"]
[Termination "daveeeeR won by resignation"]

1. d4 {[%clk 0:04:52.8]} 1... Nf6 {[%clk 0:04:58.3]} 2. Bf4 {[%clk 0:04:51.7]}
2... d5 {[%clk 0:04:56.8]} 3. Nf3 {[%clk 0:04:51.1]} 3... c5 {[%clk 0:04:51.5]}
4. e3 {[%clk 0:04:51]} 4... Nc6 {[%clk 0:04:49.9]} 5. c3 {[%clk 0:04:50]} 5...
Bf5 {[%clk 0:04:47.7]} 6. Nbd2 {[%clk 0:04:48.4]} 6... e6 {[%clk 0:04:46.2]} 7.
Qb3 {[%clk 0:04:41.4]} 7... b6 {[%clk 0:04:41.2]} 8. Bb5 {[%clk 0:04:38.5]} 8...
Qd7 {[%clk 0:04:33.6]} 9. Qa4 {[%clk 0:04:36.5]} 9... Rc8 {[%clk 0:04:29.5]} 10.
Ne5 {[%clk 0:04:34.5]} 10... Qb7 {[%clk 0:04:19.6]} 11. Bxc6+ {[%clk 0:04:26.3]}
11... Rxc6 {[%clk 0:04:14.6]} 12. Nxc6 {[%clk 0:04:24.1]} 1-0

[Event "Live Chess"]
[Site "Chess.com"]
[Date "2023.05.20"]
[Round "-"]
[White "OSmith06"]
[Black "AwesomeFredster"]
[Result "1-0"]
[WhiteElo "1718"]
[BlackElo "1654"]
[TimeControl "300"]
[EndTime "9:07:03 PDT"]
[Termination "OSmith06 won by resignation"]

1. e4 {[%clk 0:04:56.1]} 1... e5 {[%clk 0:04:58.7]} 2. Nf3 {[%clk 0:04:55.1]}
2... Nc6 {[%clk 0:04:57.8]} 3. d4 {[%clk 0:04:54]} 3... exd4 {[%clk 0:04:54.1]}
4. Nxd4 {[%clk 0:04:53.9]} 4... Nxd4 {[%clk 0:04:52.5]} 5. Qxd4 {[%clk
0:04:53.8]} 5... d6 {[%clk 0:04:44.6]} 6. Nc3 {[%clk 0:04:51.6]} 6... Be6 {[%clk
0:04:40.8]} 7. Bf4 {[%clk 0:04:46.6]} 7... c5 {[%clk 0:04:36.5]} 8. Qd3 {[%clk
0:04:32.8]} 8... g6 {[%clk 0:04:34.6]} 9. O-O-O {[%clk 0:04:27.2]} 9... Bg7
{[%clk 0:04:32.2]} 10. Bxd6 {[%clk 0:04:10.5]} 10... Nf6 {[%clk 0:04:21.3]} 11.
Bxc5 {[%clk 0:04:01.7]} 11... Qxd3 {[%clk 0:04:18.2]} 12. Bxd3 {[%clk
0:04:00.5]} 12... O-O-O {[%clk 0:04:15.6]} 13. Bxa7 {[%clk 0:03:53.2]} 1-0

[Event "Live Chess"]
[Site "Chess.com"]
[Date "2023.05.20"]
[Round "-"]
[White "NAZRIZ1977"]
[Black "McSlash1"]
[Result "1-0"]
[WhiteElo "2117"]
[BlackElo "2079"]
[TimeControl "300"]
[EndTime "9:07:38 PDT"]
[Termination "NAZRIZ1977 won by resignation"]

1. c4 {[%clk 0:04:57.4]} 1... e5 {[%clk 0:04:51.4]} 2. g3 {[%clk 0:04:56.2]}
2... Nc6 {[%clk 0:04:50.7]} 3. Bg2 {[%clk 0:04:55]} 3... Nf6 {[%clk 0:04:50.6]}
4. Nc3 {[%clk 0:04:53.8]} 4... Bc5 {[%clk 0:04:50.1]} 5. a3 {[%clk 0:04:51.9]}
5... a6 {[%clk 0:04:48.5]} 6. e3 {[%clk 0:04:51.1]} 6... O-O {[%clk 0:04:47.5]}
7. Nge2 {[%clk 0:04:49.9]} 7... d6 {[%clk 0:04:47.1]} 8. O-O {[%clk 0:04:48.1]}
8... Ba7 {[%clk 0:04:46.5]} 9. b3 {[%clk 0:04:44]} 9... Ne7 {[%clk 0:04:45.4]}
10. h3 {[%clk 0:04:41.3]} 10... Ng6 {[%clk 0:04:44.4]} 11. Kh2 {[%clk
0:04:40.1]} 11... h6 {[%clk 0:04:39.5]} 12. d4 {[%clk 0:04:37.8]} 12... exd4
{[%clk 0:04:36.8]} 13. Nxd4 {[%clk 0:04:36.8]} 13... Rb8 {[%clk 0:04:35.3]} 14.
Bb2 {[%clk 0:04:35.1]} 14... Bd7 {[%clk 0:04:32.8]} 15. Nd5 {[%clk 0:04:33.9]}
15... Nxd5 {[%clk 0:04:27.5]} 16. cxd5 {[%clk 0:04:32.8]} 16... f5 {[%clk
0:04:22.6]} 17. Rc1 {[%clk 0:04:29.8]} 17... f4 {[%clk 0:04:19.6]} 18. exf4
{[%clk 0:04:26.2]} 18... Qf6 {[%clk 0:04:03.5]} 19. Qd2 {[%clk 0:04:19.4]} 19...
Qf7 {[%clk 0:03:59.7]} 20. Rxc7 {[%clk 0:04:11.4]} 20... Bb6 {[%clk 0:03:55.3]}
21. Rcc1 {[%clk 0:04:05.7]} 21... Ne7 {[%clk 0:03:50.4]} 22. Ne6 {[%clk
0:04:02.3]} 22... Bxe6 {[%clk 0:03:46.7]} 23. dxe6 {[%clk 0:04:01]} 23... Qxe6
{[%clk 0:03:46.6]} 24. Rfe1 {[%clk 0:03:59.4]} 24... Qg6 {[%clk 0:03:42.8]} 25.
Rxe7 {[%clk 0:03:56.6]} 25... Rbe8 {[%clk 0:03:37.4]} 26. Rxg7+ {[%clk
0:03:54.9]} 1-0

[Event "Live Chess"]
[Site "Chess.com"]
[Date "2023.05.20"]
[Round "-"]
[White "IanCalvert2"]
[Black "Duke_of_Bebington"]
[Result "1-0"]
[WhiteElo "1640"]
[BlackElo "1562"]
[TimeControl "300"]
[EndTime "9:07:48 PDT"]
[Termination "IanCalvert2 won by resignation"]

1. b3 {[%clk 0:04:56.5]} 1... e5 {[%clk 0:04:49]} 2. Bb2 {[%clk 0:04:53.1]} 2...
Nc6 {[%clk 0:04:47.8]} 3. e3 {[%clk 0:04:49.9]} 3... d5 {[%clk 0:04:44.7]} 4.
Bb5 {[%clk 0:04:46.8]} 4... Bd6 {[%clk 0:04:38.1]} 5. f4 {[%clk 0:04:44.3]} 5...
f6 {[%clk 0:04:28.6]} 6. Qh5+ {[%clk 0:04:39.4]} 6... Kf8 {[%clk 0:04:25.4]} 7.
Bxc6 {[%clk 0:04:30.8]} 7... bxc6 {[%clk 0:04:22.8]} 8. fxe5 {[%clk 0:04:28.9]}
8... fxe5 {[%clk 0:04:18.8]} 9. Bxe5 {[%clk 0:04:23.5]} 9... Bxe5 {[%clk
0:04:10.4]} 10. Qxe5 {[%clk 0:04:20.7]} 10... Qh4+ {[%clk 0:04:06.8]} 11. g3
{[%clk 0:04:05.4]} 11... Qe4 {[%clk 0:04:05.4]} 12. Qxe4 {[%clk 0:04:01.7]}
12... dxe4 {[%clk 0:04:05.3]} 13. Nc3 {[%clk 0:03:57.9]} 13... Bf5 {[%clk
0:04:02.2]} 14. Nge2 {[%clk 0:03:55.6]} 14... Ke7 {[%clk 0:03:51.1]} 15. O-O
{[%clk 0:03:49.7]} 15... Rf8 {[%clk 0:03:48.3]} 16. Nd4 {[%clk 0:03:43.6]} 1-0

[Event "Live Chess"]
[Site "Chess.com"]
[Date "2023.05.20"]
[Round "-"]
[White "SaraTang"]
[Black "defenderalist"]
[Result "0-1"]
[WhiteElo "170"]
[BlackElo "1598"]
[TimeControl "300"]
[EndTime "9:08:01 PDT"]
[Termination "defenderalist won by checkmate"]

1. e4 {[%clk 0:04:57.7]} 1... e6 {[%clk 0:04:55.7]} 2. Bc4 {[%clk 0:04:55.9]}
2... d5 {[%clk 0:04:46.8]} 3. Bb3 {[%clk 0:04:53.9]} 3... Nf6 {[%clk 0:04:43.9]}
4. Nf3 {[%clk 0:04:49]} 4... dxe4 {[%clk 0:04:42.6]} 5. Ne5 {[%clk 0:04:44.8]}
5... Nbd7 {[%clk 0:04:39.2]} 6. Nxd7 {[%clk 0:04:41.8]} 6... Bxd7 {[%clk
0:04:38.5]} 7. O-O {[%clk 0:04:38.2]} 7... Be7 {[%clk 0:04:37.1]} 8. d4 {[%clk
0:04:32.4]} 8... exd3 {[%clk 0:04:35.5]} 9. cxd3 {[%clk 0:04:30]} 9... O-O
{[%clk 0:04:33.5]} 10. Bxe6 {[%clk 0:04:25.2]} 10... Bxe6 {[%clk 0:04:31]} 11.
Nc3 {[%clk 0:04:15.1]} 11... Nd5 {[%clk 0:04:29.4]} 12. Nxd5 {[%clk 0:04:13.6]}
12... Bxd5 {[%clk 0:04:28.6]} 13. Qb3 {[%clk 0:04:09]} 13... Bxb3 {[%clk
0:04:26.9]} 14. axb3 {[%clk 0:04:06.1]} 14... Qxd3 {[%clk 0:04:24]} 15. Bf4
{[%clk 0:03:59.6]} 15... Bd6 {[%clk 0:04:22.6]} 16. Bxd6 {[%clk 0:03:57.7]}
16... cxd6 {[%clk 0:04:22.5]} 17. Rfd1 {[%clk 0:03:56]} 17... Qxb3 {[%clk
0:04:21]} 18. Rab1 {[%clk 0:03:53.8]} 18... d5 {[%clk 0:04:18.8]} 19. Rd2 {[%clk
0:03:47.4]} 19... Rac8 {[%clk 0:04:17.3]} 20. Rbd1 {[%clk 0:03:45.6]} 20... Rfd8
{[%clk 0:04:16.3]} 21. Kf1 {[%clk 0:03:41.2]} 21... h6 {[%clk 0:04:14.8]} 22.
Rxd5 {[%clk 0:03:34.2]} 22... Rxd5 {[%clk 0:04:13]} 23. Rxd5 {[%clk 0:03:32.6]}
23... Qxd5 {[%clk 0:04:11.9]} 24. b4 {[%clk 0:03:30.2]} 24... Qd3+ {[%clk
0:04:10.2]} 25. Ke1 {[%clk 0:03:28.6]} 25... Rc1# {[%clk 0:04:08]} 0-1

[Event "Live Chess"]
[Site "Chess.com"]
[Date "2023.05.20"]
[Round "-"]
[White "KirbyHasARevenge"]
[Black "domrobson"]
[Result "1-0"]
[WhiteElo "1740"]
[BlackElo "1722"]
[TimeControl "300"]
[EndTime "9:08:06 PDT"]
[Termination "KirbyHasARevenge won by resignation"]

1. e4 {[%clk 0:04:58.9]} 1... e5 {[%clk 0:04:59]} 2. Nf3 {[%clk 0:04:57.6]} 2...
Nc6 {[%clk 0:04:58.1]} 3. c3 {[%clk 0:04:56.8]} 3... d5 {[%clk 0:04:56.1]} 4.
Qa4 {[%clk 0:04:54.2]} 4... f6 {[%clk 0:04:54.7]} 5. d3 {[%clk 0:04:52.9]} 5...
dxe4 {[%clk 0:04:38.5]} 6. dxe4 {[%clk 0:04:51.2]} 6... Bc5 {[%clk 0:04:36.4]}
7. Bc4 {[%clk 0:04:50.2]} 7... Ne7 {[%clk 0:04:32.9]} 8. O-O {[%clk 0:04:47.7]}
8... Ng6 {[%clk 0:04:22.3]} 9. b4 {[%clk 0:04:32.7]} 9... Bb6 {[%clk 0:04:12.5]}
10. Rd1 {[%clk 0:04:14.3]} 10... Qe7 {[%clk 0:04:07.9]} 11. Ba3 {[%clk
0:03:58.9]} 11... Bd7 {[%clk 0:03:25.8]} 12. b5 {[%clk 0:03:32.3]} 1-0

[Event "Live Chess"]
[Site "Chess.com"]
[Date "2023.05.20"]
[Round "-"]
[White "Ian-Morley"]
[Black "MJMykh"]
[Result "1-0"]
[WhiteElo "1042"]
[BlackElo "951"]
[TimeControl "300"]
[EndTime "9:08:06 PDT"]
[Termination "Ian-Morley won by checkmate"]

1. e4 {[%clk 0:04:56.2]} 1... e5 {[%clk 0:04:53.4]} 2. Nf3 {[%clk 0:04:54.6]}
2... Nc6 {[%clk 0:04:52.4]} 3. Bc4 {[%clk 0:04:53.4]} 3... Bc5 {[%clk
0:04:50.8]} 4. c3 {[%clk 0:04:50.6]} 4... h6 {[%clk 0:04:47.7]} 5. O-O {[%clk
0:04:49.4]} 5... Nf6 {[%clk 0:04:46.4]} 6. d3 {[%clk 0:04:48.8]} 6... O-O {[%clk
0:04:44.6]} 7. Re1 {[%clk 0:04:47.6]} 7... d6 {[%clk 0:04:43.5]} 8. Nbd2 {[%clk
0:04:46.2]} 8... Bg4 {[%clk 0:04:42.2]} 9. Nf1 {[%clk 0:04:43.8]} 9... Bxf3
{[%clk 0:04:41]} 10. Qxf3 {[%clk 0:04:42.7]} 10... a6 {[%clk 0:04:39.6]} 11. Ng3
{[%clk 0:04:41.5]} 11... b5 {[%clk 0:04:37]} 12. Bb3 {[%clk 0:04:35.8]} 12...
Na5 {[%clk 0:04:33.1]} 13. Be3 {[%clk 0:04:33.8]} 13... Bxe3 {[%clk 0:04:31.3]}
14. Rxe3 {[%clk 0:04:32.9]} 14... Nxb3 {[%clk 0:04:30.4]} 15. axb3 {[%clk
0:04:32]} 15... Qe7 {[%clk 0:04:27.9]} 16. Nf5 {[%clk 0:04:29.2]} 16... Qe6
{[%clk 0:04:24.6]} 17. h4 {[%clk 0:04:26.1]} 17... Qxb3 {[%clk 0:04:17]} 18.
Ne7+ {[%clk 0:04:19.1]} 18... Kh7 {[%clk 0:04:13.9]} 19. Qf5+ {[%clk 0:04:16.5]}
19... g6 {[%clk 0:04:07.9]} 20. Qxf6 {[%clk 0:04:15]} 20... Qxb2 {[%clk
0:04:02.7]} 21. Rae1 {[%clk 0:04:04.4]} 21... Qxc3 {[%clk 0:03:59.3]} 22. g4
{[%clk 0:03:59.1]} 22... b4 {[%clk 0:03:55.9]} 23. h5 {[%clk 0:03:56.9]} 23...
gxh5 {[%clk 0:03:45.1]} 24. Nf5 {[%clk 0:03:46.9]} 24... Rg8 {[%clk 0:03:26.9]}
25. Qxh6# {[%clk 0:03:42.4]} 1-0

[Event "Live Chess"]
[Site "Chess.com"]
[Date "2023.05.20"]
[Round "-"]
[White "KING_BOBBB"]
[Black "guptarayan"]
[Result "0-1"]
[WhiteElo "522"]
[BlackElo "541"]
[TimeControl "300"]
[EndTime "9:08:11 PDT"]
[Termination "guptarayan won by resignation"]

1. e4 {[%clk 0:04:58]} 1... e5 {[%clk 0:04:57.5]} 2. Nc3 {[%clk 0:04:56.6]} 2...
f5 {[%clk 0:04:55.5]} 3. Bc4 {[%clk 0:04:49.6]} 3... fxe4 {[%clk 0:04:46.3]} 4.
d3 {[%clk 0:04:47.8]} 4... exd3 {[%clk 0:04:42.7]} 5. cxd3 {[%clk 0:04:46.6]}
5... c6 {[%clk 0:04:35.1]} 6. a4 {[%clk 0:04:43.1]} 6... d5 {[%clk 0:04:32.8]}
7. Bb3 {[%clk 0:04:42.1]} 7... d4 {[%clk 0:04:29.5]} 8. Ne4 {[%clk 0:04:40.9]}
8... Bb4+ {[%clk 0:04:17]} 9. Bd2 {[%clk 0:04:38.9]} 9... Bxd2+ {[%clk
0:04:15.3]} 10. Qxd2 {[%clk 0:04:38.8]} 10... Nd7 {[%clk 0:04:12.5]} 11. Nd6+
{[%clk 0:04:35.1]} 11... Kf8 {[%clk 0:04:01.2]} 12. Qb4 {[%clk 0:04:24.2]} 12...
a5 {[%clk 0:03:51.5]} 13. Nxb7+ {[%clk 0:04:03.4]} 13... Qe7 {[%clk 0:03:38.5]}
14. Qxe7+ {[%clk 0:03:25.7]} 14... Kxe7 {[%clk 0:03:36.6]} 0-1

[Event "Live Chess"]
[Site "Chess.com"]
[Date "2023.05.20"]
[Round "-"]
[White "NatashaRegan"]
[Black "LaupMiths"]
[Result "1-0"]
[WhiteElo "1875"]
[BlackElo "1809"]
[TimeControl "300"]
[EndTime "9:08:12 PDT"]
[Termination "NatashaRegan won by checkmate"]

1. e4 {[%clk 0:04:57.4]} 1... c5 {[%clk 0:04:56.5]} 2. d4 {[%clk 0:04:55.3]}
2... cxd4 {[%clk 0:04:54.5]} 3. c3 {[%clk 0:04:54.2]} 3... d3 {[%clk 0:04:27.3]}
4. c4 {[%clk 0:04:51.9]} 4... Nc6 {[%clk 0:04:25.3]} 5. Nc3 {[%clk 0:04:50.4]}
5... d6 {[%clk 0:04:24.1]} 6. Bxd3 {[%clk 0:04:49]} 6... Nf6 {[%clk 0:04:22.8]}
7. Be3 {[%clk 0:04:44.9]} 7... g6 {[%clk 0:04:22.3]} 8. f4 {[%clk 0:04:41.8]}
8... Bg7 {[%clk 0:04:21.1]} 9. h3 {[%clk 0:04:40.2]} 9... O-O {[%clk 0:04:19.2]}
10. Nf3 {[%clk 0:04:39.2]} 10... b6 {[%clk 0:04:14.8]} 11. O-O {[%clk
0:04:37.8]} 11... Bb7 {[%clk 0:04:13.3]} 12. Rc1 {[%clk 0:04:33.3]} 12... a6
{[%clk 0:04:11.8]} 13. b3 {[%clk 0:04:31.4]} 13... Rb8 {[%clk 0:04:09.8]} 14.
Nd5 {[%clk 0:04:28.4]} 14... Nxd5 {[%clk 0:04:03.2]} 15. cxd5 {[%clk 0:04:25]}
15... Na7 {[%clk 0:03:56.2]} 16. Nd4 {[%clk 0:04:22.1]} 16... Rc8 {[%clk
0:03:51.7]} 17. Rxc8 {[%clk 0:04:17.4]} 17... Qxc8 {[%clk 0:03:46.2]} 18. Qe2
{[%clk 0:04:15.5]} 18... Qd7 {[%clk 0:03:43.1]} 19. Bxa6 {[%clk 0:04:09.6]}
19... Rc8 {[%clk 0:03:39.5]} 20. Bxb7 {[%clk 0:04:07.1]} 20... Qxb7 {[%clk
0:03:37.7]} 21. Kh1 {[%clk 0:04:03.2]} 21... Rc5 {[%clk 0:03:27]} 22. f5 {[%clk
0:04:00.6]} 22... Qd7 {[%clk 0:03:21.8]} 23. Qf3 {[%clk 0:03:54.5]} 23... Bxd4
{[%clk 0:03:10]} 24. Bxd4 {[%clk 0:03:52.6]} 24... Rc2 {[%clk 0:03:09.5]} 25.
fxg6 {[%clk 0:03:50.3]} 25... fxg6 {[%clk 0:03:07.9]} 26. Qf7# {[%clk
0:03:48.5]} 1-0

[Event "Live Chess"]
[Site "Chess.com"]
[Date "2023.05.20"]
[Round "-"]
[White "MartinWalker4"]
[Black "Jio85"]
[Result "1-0"]
[WhiteElo "2121"]
[BlackElo "2045"]
[TimeControl "300"]
[EndTime "9:08:21 PDT"]
[Termination "MartinWalker4 won by resignation"]

1. e4 {[%clk 0:04:57.2]} 1... Nf6 {[%clk 0:04:58.8]} 2. e5 {[%clk 0:04:53.1]}
2... Nd5 {[%clk 0:04:56.2]} 3. c4 {[%clk 0:04:51.8]} 3... Nb6 {[%clk 0:04:55.5]}
4. d4 {[%clk 0:04:50.7]} 4... d6 {[%clk 0:04:55.1]} 5. f4 {[%clk 0:04:49.4]}
5... dxe5 {[%clk 0:04:52.8]} 6. fxe5 {[%clk 0:04:48.2]} 6... c5 {[%clk
0:04:52.2]} 7. d5 {[%clk 0:04:44.2]} 7... e6 {[%clk 0:04:51.3]} 8. Nc3 {[%clk
0:04:42.4]} 8... g6 {[%clk 0:04:43.5]} 9. Nf3 {[%clk 0:04:36.9]} 9... Bg7 {[%clk
0:04:41.6]} 10. Be2 {[%clk 0:04:33.3]} 10... O-O {[%clk 0:04:28.1]} 11. O-O
{[%clk 0:04:31.1]} 11... N8d7 {[%clk 0:04:25.4]} 12. Bf4 {[%clk 0:04:21.5]}
12... Re8 {[%clk 0:04:14.2]} 13. dxe6 {[%clk 0:04:19.4]} 13... Rxe6 {[%clk
0:04:03.7]} 14. Ng5 {[%clk 0:04:17.1]} 14... Re8 {[%clk 0:04:00.3]} 15. Nxf7
{[%clk 0:04:11.8]} 15... Qe7 {[%clk 0:03:36.6]} 16. Nd6 {[%clk 0:04:08.2]} 16...
Rf8 {[%clk 0:03:32.9]} 17. Nd5 {[%clk 0:04:06.4]} 17... Nxd5 {[%clk 0:03:30.8]}
18. Qxd5+ {[%clk 0:04:04.7]} 18... Kh8 {[%clk 0:03:29.4]} 19. Bg5 {[%clk
0:03:59.6]} 19... Qxg5 {[%clk 0:02:54.3]} 20. Rxf8+ {[%clk 0:03:56.3]} 1-0

[Event "Live Chess"]
[Site "Chess.com"]
[Date "2023.05.20"]
[Round "-"]
[White "SavagePawn7"]
[Black "martinsmartin63"]
[Result "1-0"]
[WhiteElo "789"]
[BlackElo "760"]
[TimeControl "300"]
[EndTime "9:08:22 PDT"]
[Termination "SavagePawn7 won by resignation"]

1. e4 {[%clk 0:04:57.2]} 1... e5 {[%clk 0:04:57.1]} 2. d4 {[%clk 0:04:55.6]}
2... f6 {[%clk 0:04:52.7]} 3. dxe5 {[%clk 0:04:53.9]} 3... fxe5 {[%clk
0:04:46.7]} 4. Qh5+ {[%clk 0:04:52.3]} 4... g6 {[%clk 0:04:38.9]} 5. Qxe5+
{[%clk 0:04:50.8]} 5... Be7 {[%clk 0:04:27.4]} 6. Qxh8 {[%clk 0:04:47.9]} 6...
Bb4+ {[%clk 0:04:18]} 7. c3 {[%clk 0:04:43.9]} 7... Bc5 {[%clk 0:04:13.8]} 8.
Be3 {[%clk 0:04:39.5]} 8... Bxe3 {[%clk 0:04:06.1]} 9. Qxg8+ {[%clk 0:04:29.3]}
9... Ke7 {[%clk 0:04:02.4]} 10. Qxd8+ {[%clk 0:04:24.1]} 10... Kxd8 {[%clk
0:03:59.7]} 11. fxe3 {[%clk 0:04:22.6]} 11... d6 {[%clk 0:03:56.4]} 12. Nd2
{[%clk 0:04:20.3]} 12... Be6 {[%clk 0:03:50.3]} 13. O-O-O {[%clk 0:04:17.9]}
13... Nc6 {[%clk 0:03:40.9]} 14. Ngf3 {[%clk 0:04:16.1]} 14... Kd7 {[%clk
0:03:32.2]} 15. Ng5 {[%clk 0:04:12.9]} 15... Bg4 {[%clk 0:03:26.4]} 16. Re1
{[%clk 0:03:58.1]} 16... h6 {[%clk 0:03:20.5]} 17. h3 {[%clk 0:03:50.4]} 17...
Be6 {[%clk 0:03:14.3]} 18. Nxe6 {[%clk 0:03:47.5]} 18... Kxe6 {[%clk 0:03:09.8]}
19. Nf3 {[%clk 0:03:36.2]} 1-0

[Event "Live Chess"]
[Site "Chess.com"]
[Date "2023.05.20"]
[Round "-"]
[White "TKDRyan"]
[Black "MizYanKo"]
[Result "1-0"]
[WhiteElo "1163"]
[BlackElo "446"]
[TimeControl "300"]
[EndTime "9:08:33 PDT"]
[Termination "TKDRyan won by checkmate"]

1. e4 {[%clk 0:04:56.4]} 1... e5 {[%clk 0:04:57.4]} 2. Nf3 {[%clk 0:04:54.8]}
2... d5 {[%clk 0:04:57]} 3. exd5 {[%clk 0:04:48.7]} 3... c6 {[%clk 0:04:53.1]}
4. Nc3 {[%clk 0:04:42.9]} 4... Bc5 {[%clk 0:04:44.8]} 5. Nxe5 {[%clk 0:04:38.7]}
5... Qf6 {[%clk 0:04:35.6]} 6. d4 {[%clk 0:04:32.4]} 6... Qxf2+ {[%clk
0:04:33.9]} 7. Kxf2 {[%clk 0:04:30.4]} 7... Bxd4+ {[%clk 0:04:26.2]} 8. Qxd4
{[%clk 0:04:28.5]} 8... Ne7 {[%clk 0:04:23.1]} 9. d6 {[%clk 0:04:21.6]} 9... O-O
{[%clk 0:04:22.1]} 10. dxe7 {[%clk 0:04:18.2]} 10... Re8 {[%clk 0:04:19.3]} 11.
Bc4 {[%clk 0:04:00.4]} 11... Nd7 {[%clk 0:04:17.7]} 12. Nxd7 {[%clk 0:03:56.7]}
12... Rxe7 {[%clk 0:04:17.2]} 13. Nf6+ {[%clk 0:03:25.9]} 13... Kh8 {[%clk
0:04:00.7]} 14. Qd8+ {[%clk 0:03:23.7]} 14... Re8 {[%clk 0:03:55.1]} 15. Qxe8#
{[%clk 0:03:22.2]} 1-0

[Event "Live Chess"]
[Site "Chess.com"]
[Date "2023.05.20"]
[Round "-"]
[White "Brooms1989"]
[Black "jk0110"]
[Result "1-0"]
[WhiteElo "928"]
[BlackElo "1066"]
[TimeControl "300"]
[EndTime "9:08:46 PDT"]
[Termination "Brooms1989 won by checkmate"]

1. e4 {[%clk 0:04:58.1]} 1... e5 {[%clk 0:04:58.3]} 2. Nc3 {[%clk 0:04:56.6]}
2... Nf6 {[%clk 0:04:54.8]} 3. f4 {[%clk 0:04:55]} 3... d5 {[%clk 0:04:53.9]} 4.
fxe5 {[%clk 0:04:53.3]} 4... Nxe4 {[%clk 0:04:51.9]} 5. Nxe4 {[%clk 0:04:52.3]}
5... dxe4 {[%clk 0:04:43.8]} 6. Bc4 {[%clk 0:04:44.8]} 6... Nc6 {[%clk
0:04:32.6]} 7. d4 {[%clk 0:04:25.6]} 7... exd3 {[%clk 0:04:26.7]} 8. Qf3 {[%clk
0:04:20.5]} 8... Nxe5 {[%clk 0:04:07.4]} 9. Qe4 {[%clk 0:03:54]} 9... Bd6 {[%clk
0:03:44.2]} 10. Bxd3 {[%clk 0:03:30.1]} 10... O-O {[%clk 0:03:35.8]} 11. Qxh7#
{[%clk 0:03:21.8]} 1-0

[Event "Live Chess"]
[Site "Chess.com"]
[Date "2023.05.20"]
[Round "-"]
[White "BJAW87"]
[Black "daveeeeR"]
[Result "1-0"]
[WhiteElo "1472"]
[BlackElo "1268"]
[TimeControl "300"]
[EndTime "9:08:50 PDT"]
[Termination "BJAW87 won by checkmate"]

1. e4 {[%clk 0:04:58.9]} 1... c5 {[%clk 0:04:58.7]} 2. Nf3 {[%clk 0:04:57.4]}
2... Nc6 {[%clk 0:04:58.6]} 3. Bb5 {[%clk 0:04:56.5]} 3... Nd4 {[%clk
0:04:54.4]} 4. Nxd4 {[%clk 0:04:54.7]} 4... cxd4 {[%clk 0:04:53.1]} 5. O-O
{[%clk 0:04:52.7]} 5... e5 {[%clk 0:04:52.1]} 6. d3 {[%clk 0:04:49.9]} 6... Nf6
{[%clk 0:04:46.8]} 7. f4 {[%clk 0:04:47.6]} 7... Be7 {[%clk 0:04:45.2]} 8. fxe5
{[%clk 0:04:45.5]} 8... Ng8 {[%clk 0:04:41.4]} 9. Qg4 {[%clk 0:04:39.2]} 9... g6
{[%clk 0:04:33.4]} 10. e6 {[%clk 0:04:33.2]} 10... fxe6 {[%clk 0:04:29.7]} 11.
Qxe6 {[%clk 0:04:31.7]} 11... Nf6 {[%clk 0:04:25.6]} 12. Bg5 {[%clk 0:04:10.6]}
12... Rf8 {[%clk 0:04:20.8]} 13. Bxf6 {[%clk 0:03:52.5]} 13... Rxf6 {[%clk
0:04:14.4]} 14. Rxf6 {[%clk 0:03:49.6]} 14... a6 {[%clk 0:04:11.8]} 15. Qg8+
{[%clk 0:03:44.3]} 15... Bf8 {[%clk 0:04:09.6]} 16. Qxf8# {[%clk 0:03:41.4]} 1-0

[Event "Live Chess"]
[Site "Chess.com"]
[Date "2023.05.20"]
[Round "-"]
[White "Outspanner"]
[Black "TheKingKeir"]
[Result "1-0"]
[WhiteElo "1577"]
[BlackElo "1513"]
[TimeControl "300"]
[EndTime "9:09:01 PDT"]
[Termination "Outspanner won by resignation"]

1. d4 {[%clk 0:04:56.9]} 1... Nf6 {[%clk 0:04:58.1]} 2. Bg5 {[%clk 0:04:54.9]}
2... Ne4 {[%clk 0:04:56.3]} 3. h4 {[%clk 0:04:53.8]} 3... h6 {[%clk 0:04:55]} 4.
Bf4 {[%clk 0:04:51.5]} 4... d5 {[%clk 0:04:49.7]} 5. Nd2 {[%clk 0:04:42.3]} 5...
Bf5 {[%clk 0:04:46]} 6. Nxe4 {[%clk 0:04:38]} 6... Bxe4 {[%clk 0:04:45.9]} 7. f3
{[%clk 0:04:37.4]} 7... Bh7 {[%clk 0:04:39.3]} 8. e3 {[%clk 0:04:35.5]} 8... e6
{[%clk 0:04:31.2]} 9. Bd3 {[%clk 0:04:29.7]} 9... Be7 {[%clk 0:04:21.2]} 10.
Bxh7 {[%clk 0:04:26.2]} 10... Bxh4+ {[%clk 0:04:19.3]} 11. g3 {[%clk 0:04:23.9]}
11... Bg5 {[%clk 0:04:04.7]} 12. Bd3 {[%clk 0:04:16.4]} 12... Nd7 {[%clk
0:04:01.6]} 13. Ne2 {[%clk 0:04:07.6]} 13... c5 {[%clk 0:03:58.7]} 14. dxc5
{[%clk 0:04:02.7]} 14... Nxc5 {[%clk 0:03:58.6]} 15. Bb5+ {[%clk 0:03:53.3]}
15... Kf8 {[%clk 0:03:55.9]} 16. Qd2 {[%clk 0:03:39.6]} 16... a6 {[%clk
0:03:21.2]} 17. Bd3 {[%clk 0:03:35.2]} 17... Qf6 {[%clk 0:03:08.8]} 18. Qc3
{[%clk 0:03:31.2]} 18... Qe7 {[%clk 0:02:53.2]} 19. Bxg5 {[%clk 0:03:12.2]} 1-0